{"text_format":"2","workbook":"xlsx","n_sheets":4,"sheets":["Záradék","Összesítő","Költségtérítések","Elektromosenergia-ellátás, vill"],"not_rendered":{"charts":0,"images":0,"macros":0,"external_links":0,"defined_names":0,"comments":0,"pivot_tables":0},"unopened":[],"bounds":{"document_bytes":16777216,"sheet_cells":100000,"run_cost":"one","rows_first":2000,"rows_last":500,"rows_between":2000,"halvings":0,"cell_chars":16384,"cell_head_chars":4096},"cells_cut":0,"cells_raw":0,"read":"whole","date_system":"1900"}

{"sheet":"Záradék","index":0,"n_rows":28,"n_cols":4,"rows_kept":28,"cut":false,"hidden":false,"merged":[[23,2,23,3],[27,1,27,2],[8,0,8,2],[9,0,9,2],[10,0,10,2],[11,0,11,2],[12,0,12,2],[13,0,13,2],[1,0,1,3],[2,0,2,3],[17,0,17,3],[21,2,21,3],[22,2,22,3],[0,0,0,3]]}
[]
[]
[]
["Megrendelő: SZTE Műszaki Igazgatóság\nMűszaki és Beruházási Iroda",null,"Kelt:       "]
["Cím: 6723 Szeged, Római krt. 21. ",null,"                                       "]
["                                       ",null,"          Készítette:                  "]
[]
[]
["V I L L Á M V É D E L E M   K Ö L T S É G V E T É S "]
["A     "]
["                              SZTE Állam -és Jogtudományi Kar                                          "]
["                      6720 Szeged, Tisza Lajos krt.54. alatti épület                               "]
["                             tetőrekonstrukciós munkáihoz                                         "]
["          (Szakvélemény szerinti javítás és Viharkár okozta helyreállítás)              "]
[]
["                                                                              "]
[]
["Költségvetés főösszesítő"]
["Megnevezés",null,"Anyagköltség","Díjköltség"]
["1. Építmény közvetlen költségei",null,{"$f":"ROUND(SUM(Összesítő!B2:B3),0)","v":0},{"$f":"ROUND(SUM(Összesítő!C2:C3),0)","v":0}]
["1.1 Közvetlen önköltség összesen",null,{"$f":"ROUND(C20,0)","v":0},{"$f":"ROUND(D20,0)","v":0}]
["2.1 ÁFA vetítési alap",null,{"$f":"ROUND(C21+D21,0)","v":0}]
["2.2 Áfa",0,{"$f":"ROUND(C22*B23,0)","v":0}]
["3.  A munka ára",null,{"$f":"ROUND(C22+C23,0)","v":0}]
[]
[]
[]
[null,"Aláírás"]

{"sheet":"Összesítő","index":1,"n_rows":4,"n_cols":3,"rows_kept":4,"cut":false,"hidden":false,"merged":[]}
["Munkanem megnevezése","Anyag összege","Díj összege"]
["Költségtérítések",{"$f":"Költségtérítések!H6","v":0},{"$f":"Költségtérítések!I6","v":0}]
["Elektromosenergia-ellátás, villanyszerelés",{"$f":"'Elektromosenergia-ellátás, vill'!H32","v":0},{"$f":"'Elektromosenergia-ellátás, vill'!I32","v":0}]
["Összesen:",{"$f":"ROUND(SUM(B2:B3),0)","v":0},{"$f":"ROUND(SUM(C2:C3), 0)","v":0}]

{"sheet":"Költségtérítések","index":2,"n_rows":6,"n_cols":9,"rows_kept":6,"cut":false,"hidden":false,"merged":[]}
["Ssz.","Tételszám","Tétel szövege","Menny.","Egység","Anyag egységár","Díj egységre","Anyag összesen","Díj összesen"]
[1,"19-010-1.21.2","Általános teendők befejezés szakaszában, megvalósulási tervdokumentáció elkészítése",1,"db",0,0,{"$f":"ROUND(D2*F2, 0)","v":0},{"$f":"ROUND(D2*G2, 0)","v":0}]
[]
[2,"19-071-11.1.1.2","Ellenőrző próbák, villámvédelmi mérés",1,"db",0,0,{"$f":"ROUND(D4*F4, 0)","v":0},{"$f":"ROUND(D4*G4, 0)","v":0}]
[]
[null,null,"Munkanem összesen:",{"$nulls":4},{"$f":"ROUND(SUM(H2:H5),0)","v":0},{"$f":"ROUND(SUM(I2:I5),0)","v":0}]

{"sheet":"Elektromosenergia-ellátás, vill","index":3,"n_rows":32,"n_cols":9,"rows_kept":32,"cut":false,"hidden":false,"merged":[]}
["Ssz.","Tételszám","Tétel szövege","Menny.","Egység","Anyag egységár","Díj egységre","Anyag összesen","Díj összesen"]
[1,"71-013-1.1.2-0811095","Villámhárító felfogóvezető szerelése, előre elkészített tartószerkezetre, sodronyból, kör- vagy laposacélból, meredek tetőn, tartóra szerelve, 60 mm² felett Cabling Systems Hungary ACSR szabadvezeték sodrony acél-alumíniumból készült levezetőhöz, 95 mm²",40,"m",0,0,0,0]
[]
[2,"71-013-2.2.2-2811095","Villámhárító levezető szerelése, előre elkészített tartószerkezetre, sodronyból, kör- vagy laposacélból, épületszerkezeten kívül, átfeszítéssel 30 m-ig, 61 - 100 mm² között 15 m Cabling Systems Hungary ACSR szabadvezeték sodrony acél-alumínium 95 mm2",6,"db",0,0,{"$f":"ROUND(D4*F4, 0)","v":0},0]
[]
[3,"71-013-3.1.1-0555232","Földelő- és/vagy védővezető szerelése, előre elkészített tartószerkezetre, sodronyból vagy köracélból, 300 mm²-ig (átmérő: 20 mm-ig) ELECTRAPLAN 2318/16/6 rúd, villámlevezető rúd 16mm  6m, Cikkszám: 7102318.16.6RÚD00001",12,"m",0,0,0,0]
[]
[4,"71-013-5.1-0310356","Villám- és érintésvédelmi hálózat tartozékainak szerelése, felfogórúd szívócsúccsal OBO 1 m-es acélrúd, 16 mm, köracél csatlakozóval, 101/F-1000, R.sz.: 5424100 és 5304105",1,"db",0,0,0,0]
[]
[5,"71-013-5.1-0310357","Villám- és érintésvédelmi hálózat tartozékainak szerelése, felfogórúd szívócsúccsal OBO 1,5 m-es acélrúd, 16 mm, köracél csatlakozóval, 101/F-1500, R.sz.: 5424151 és 5304105",1,"db",0,0,0,0]
[]
[6,"71-013-5.1-0310361","Villám- és érintésvédelmi hálózat tartozékainak szerelése, felfogórúd szívócsúccsal OBO 3 m-es alumínium rúd, 16 mm, köracél csatlakozóval, 101/V-3000, R.sz.: 5401941 és 5304105",4,"db",0,0,{"$f":"ROUND(D12*F12, 0)","v":0},0]
[]
[7,"71-013-5.3-0310366","Villám- és érintésvédelmi hálózat tartozékainak szerelése, bádogszegély, esőcsatorna bekötése OBO bádogszegély bekötő bilincs, 10 mm vastagságig, 8/10 mm köracélhoz, R.sz.: 5317207",20,"db",0,0,{"$f":"ROUND(D14*F14, 0)","v":0},0]
[]
[8,"71-013-5.3-0310367","Villám- és érintésvédelmi hálózat tartozékainak szerelése, bádogszegély, esőcsatorna bekötése OBO ereszcsatorna bekötő bilincs, minden peremvastagsághoz, 8/10 mm köracélhoz, R.sz.: 5316014",6,"db",0,0,{"$f":"ROUND(D16*F16, 0)","v":0},0]
[]
[9,"71-013-5.3-0310368","Villám- és érintésvédelmi hálózat tartozékainak szerelése, bádogszegély, esőcsatorna bekötése OBO esőcsatorna ejtőcső bekötő bilincs, 90-130 mm átmérőhöz, 8/10 mm köracélhoz, köracél csatlakozóval, R.sz.: 5350867 és 5304105",6,"db",0,0,0,{"$f":"ROUND(D18*G18, 0)","v":0}]
[]
[10,"71-013-5.5.1-0310372","Villám- és érintésvédelmi hálózat tartozékainak szerelése, földelő rúd vagy cső, 4 m hosszúságig OBO keresztföldelő, 3 m hosszú, 50x50 mm, köracél csatlakozóval, R.sz.: 5003040 és 5304105",6,"db",0,0,{"$f":"ROUND(D20*F20, 0)","v":0},{"$f":"ROUND(D20*G20, 0)","v":0}]
[]
[11,"71-013-5.6-0555395","Villám- és érintésvédelmi hálózat tartozékainak szerelése, védőburkolat elhelyezése ELECTRAPLAN ZIN OU 1,7 m, L profilos vezetékvédő 1,7m, Cikkszám: 8586012251903",6,"db",0,0,{"$f":"ROUND(D22*F22, 0)","v":0},{"$f":"ROUND(D22*G22, 0)","v":0}]
[]
[12,"71-013-5.7","Villám- és érintésvédelmi hálózat tartozékainak szerelése, feszítő-konzol elhelyezése alsó ponton",6,"db",0,0,{"$f":"ROUND(D24*F24, 0)","v":0},{"$f":"ROUND(D24*G24, 0)","v":0}]
[]
[13,"71-013-5.8-0811095","Villám- és érintésvédelmi hálózat tartozékainak szerelése, mérési hely kialakítása (vizsgáló összekötő) Cabling Systems Hungary ACSR szabadvezeték sodrony acél-alumíniumból készült levezetőhöz, 95 mm²",6,"db",0,0,{"$f":"ROUND(D26*F26, 0)","v":0},{"$f":"ROUND(D26*G26, 0)","v":0}]
[]
[14,"71-013-10.3-0555088","Villámvédelmi hálózat tartószerkezeteinek szerelése, felfogó- és/vagy levezető faszerkezethez rögzített bilinccsel ELECTRAPLAN ZIN DJ 5h, felfogórúd tartó, Cikkszám: 8586012250234",6,"db",0,0,{"$f":"ROUND(D28*F28, 0)","v":0},{"$f":"ROUND(D28*G28, 0)","v":0}]
[]
[15,"71-013-10.3-0555089","Villámvédelmi hálózat tartószerkezeteinek szerelése, felfogó- és/vagy levezető faszerkezethez rögzített bilinccsel ELECTRAPLAN ZIN DJ 5 d, felfogórúd tartó fa tetőszerkezetre, Cikkszám: 8586012250258",30,"db",0,0,{"$f":"ROUND(D30*F30, 0)","v":0},0]
[]
[null,null,"Munkanem összesen:",{"$nulls":4},{"$f":"ROUND(SUM(H2:H31),0)","v":0},{"$f":"ROUND(SUM(I2:I31),0)","v":0}]